fUSD/lending_fUSD_20240502
["ID","MTS","AMOUNT","RATE_DAILY","PERIOD"]
[325289462,1714683062353,-500.0,0.0003041,2]
[325289463,1714683062363,-4431.81,0.0003041,2]
[325289464,1714683062372,-1089.0,0.0003041,2]
[325289465,1714683062382,-2269.33,0.0003041,2]
[325289466,1714683062392,-500.0,0.0003041,2]
[325289467,1714683062402,-500.0,0.0003041,2]
[325289468,1714683062411,-500.0,0.0003041,2]
[325289469,1714683062420,-500.0,0.0003041,2]
[325289470,1714683062430,-2735.7,0.0003041,2]
[325289471,1714683062439,-2213.5,0.0003041,2]
[325289472,1714683062448,-533.06,0.0003041,2]
[325289473,1714683062458,-500.0,0.0003041,2]
[325289474,1714683062467,-191.62281446,0.00030468,2]
[325289475,1714683062476,-1212.59388611,0.00030468,2]
[325289476,1714683062485,-200.0,0.00030475,2]
[325289477,1714683062495,-1000.0,0.00030475,10]
[325289478,1714683062503,-500.0,0.00030475,2]
[325289479,1714683062513,-200.0,0.00030475,2]
[325289480,1714683062522,-525.0,0.000305,5]
[325289481,1714683062531,-200.0,0.00030564,7]
[325289482,1714683062541,-352.0,0.000306,2]
[325289483,1714683062551,-1000.0,0.000306,2]
[325289484,1714683062561,-223.0,0.000306,2]
[325289485,1714683062571,-294.020789,0.00030644,7]
[325289486,1714683062580,-1734.59,0.00030678,4]
[325289487,1714683062592,-300.0,0.00030683,2]
[325289488,1714683062600,-300.0,0.00030683,2]
[325289489,1714683062610,-308.74403865,0.00030683,2]
[325289490,1714683062620,-646.91,0.00030683,2]
[325289491,1714683062629,-646.91,0.00030683,2]
[325289492,1714683062968,-646.91,0.00030683,2]
[325289493,1714683062985,-1734.59,0.00030683,4]
[325289494,1714683062995,-1734.59,0.00030683,4]
[325289495,1714683063004,-1734.59,0.00030683,4]
[325289496,1714683063014,-1734.59,0.00030683,4]
[325289497,1714683063025,-1734.59,0.00030683,4]
[325289498,1714683063035,-956.92,0.00030684,2]
[325289499,1714683063045,-656.05,0.00030684,2]
[325289500,1714683063055,-500.0,0.00030684,2]
[325289501,1714683063065,-500.0,0.00030684,2]
[325289502,1714683063075,-500.0,0.00030684,2]
[325289503,1714683063084,-500.0,0.00030684,2]
[325289504,1714683063094,-500.0,0.00030684,2]
[325289505,1714683063103,-500.0,0.00030684,2]
[325289506,1714683063112,-500.0,0.00030684,2]
[325289507,1714683063122,-843.96,0.00030684,2]
[325289508,1714683063131,-500.0,0.00030684,2]
[325289509,1714683063141,-907.78,0.00030684,2]
[325289510,1714683063150,-500.0,0.00030684,2]
[325289511,1714683063159,-500.0,0.00030684,2]
[325289512,1714683063168,-500.0,0.00030684,2]
[325289513,1714683063178,-500.0,0.00030684,2]
[325289514,1714683063187,-739.05,0.00030684,2]
[325289515,1714683063196,-500.0,0.00030684,2]
[325289516,1714683063206,-500.0,0.00030684,2]
[325289517,1714683063215,-500.0,0.00030684,2]
[325289518,1714683063225,-500.0,0.00030684,2]
[325289519,1714683063234,-504.58,0.00030684,2]
[325289520,1714683063243,-500.0,0.00030684,2]
[325289521,1714683063253,-500.0,0.00030684,2]
[325289522,1714683063262,-500.0,0.00030684,2]
[325289523,1714683063271,-500.0,0.00030684,2]
[325289524,1714683063281,-500.0,0.00030684,2]
[325289525,1714683063290,-533.53,0.00030684,2]
[325289526,1714683063299,-500.0,0.00030684,2]
[325289527,1714683063309,-500.0,0.00030684,2]
[325289528,1714683063318,-500.0,0.00030684,2]
[325289529,1714683063328,-500.0,0.00030684,2]
[325289530,1714683063338,-1170.06,0.00030684,2]
[325289531,1714683063347,-500.0,0.00030684,2]
[325289532,1714683063356,-500.0,0.00030684,2]
[325289533,1714683063366,-500.0,0.00030684,2]
[325289534,1714683063375,-500.0,0.00030684,2]
[325289535,1714683063384,-500.0,0.00030684,2]
[325289536,1714683063393,-1062.26,0.00030684,2]
[325289537,1714683063403,-500.0,0.00030684,2]
[325289538,1714683063412,-500.0,0.00030684,2]
[325289539,1714683063422,-500.0,0.00030684,2]
[325289540,1714683063432,-500.0,0.00030684,2]
[325289541,1714683063441,-1032.63,0.00030684,2]
[325289542,1714683063450,-500.0,0.00030684,2]
[325289543,1714683063459,-373.48740038,0.00030684,2]
[325289544,1714683063468,-500.0,0.00030684,2]
[325289545,1714683063478,-500.0,0.00030684,2]
[325289546,1714683063487,-500.0,0.00030684,2]
[325289547,1714683063496,-500.0,0.00030684,2]
[325289548,1714683063506,-500.0,0.00030684,2]
[325289549,1714683063515,-689.75,0.00030684,2]
[325289550,1714683063526,-500.0,0.00030684,2]
[325289551,1714683063535,-500.0,0.00030684,2]
[325289552,1714683063545,-606.2,0.00030684,2]
[325289553,1714683063554,-500.0,0.00030684,2]
[325289554,1714683063563,-500.0,0.00030684,2]
[325289555,1714683063572,-500.0,0.00030684,2]
[325289556,1714683063581,-500.0,0.00030684,2]
[325289557,1714683063591,-500.0,0.00030684,2]
[325289558,1714683063600,-500.0,0.00030684,2]
[325289559,1714683063609,-500.0,0.00030684,2]
[325289560,1714683063619,-1362.14,0.00030684,2]
[325289561,1714683063629,-500.0,0.00030684,2]
[325289562,1714683063639,-511.4,0.00030684,2]
[325289563,1714683063650,-500.0,0.00030684,2]
[325289564,1714683063660,-500.0,0.00030684,2]
[325289565,1714683063672,-513.66,0.00030684,2]
[325289566,1714683063682,-1065.05,0.00030684,2]
[325289567,1714683063692,-500.0,0.00030684,2]
[325289568,1714683063701,-805.1,0.00030684,2]
[325289569,1714683063711,-500.0,0.00030684,2]
[325289570,1714683063720,-1024.97,0.00030684,2]
[325289571,1714683063729,-507.61,0.00030684,2]
[325289572,1714683063739,-500.0,0.00030684,2]
[325289573,1714683063748,-500.0,0.00030684,2]
[325289574,1714683063760,-500.0,0.00030684,2]
[325289575,1714683063773,-500.0,0.00030684,2]
[325289576,1714683063783,-721.28,0.00030684,2]
[325289577,1714683063792,-857.67,0.00030684,2]
[325289578,1714683063803,-505.77,0.00030684,2]
[325289579,1714683063812,-500.0,0.00030684,2]
[325289580,1714683063821,-639.08,0.00030684,2]
[325289581,1714683063831,-794.49,0.00030684,2]
[325289582,1714683063841,-500.0,0.00030684,2]
[325289583,1714683063852,-500.0,0.00030684,2]
[325289584,1714683063861,-500.0,0.00030684,2]
[325289585,1714683063871,-500.0,0.00030684,2]
[325289586,1714683063880,-530.43,0.00030684,2]
[325289587,1714683063890,-500.0,0.00030684,2]
[325289588,1714683063899,-500.0,0.00030684,2]
[325289589,1714683063908,-500.0,0.00030684,2]
[325289590,1714683063917,-500.0,0.00030684,2]
[325289591,1714683063928,-500.0,0.00030684,2]
[325289592,1714683063938,-500.0,0.00030684,2]
[325289593,1714683063947,-500.0,0.00030684,2]
[325289594,1714683063957,-500.0,0.00030684,2]
[325289595,1714683063966,-500.0,0.00030684,2]
[325289596,1714683063976,-500.0,0.00030684,2]
[325289597,1714683063985,-779.7,0.00030684,2]
[325289598,1714683063995,-500.0,0.00030684,2]
[325289599,1714683064004,-500.0,0.00030684,2]
[325289600,1714683064013,-500.0,0.00030684,2]
[325289601,1714683064023,-481.81962823,0.00030684,2]
[325289602,1714683064033,-500.0,0.00030684,2]
[325289603,1714683064043,-500.0,0.00030684,2]
[325289604,1714683064053,-500.0,0.00030684,2]
[325289605,1714683064064,-500.0,0.00030684,2]
[325289606,1714683064074,-1684.62,0.00030684,2]
[325289607,1714683064083,-597.3,0.00030684,2]
[325289608,1714683064093,-500.0,0.00030684,2]
[325289609,1714683064104,-500.0,0.00030684,2]
[325289610,1714683064114,-812.7,0.00030684,2]
[325289611,1714683064127,-1254.46,0.00030684,2]
[325289612,1714683064137,-500.0,0.00030684,2]
[325289613,1714683064148,-500.0,0.00030684,2]
[325289614,1714683064157,-500.0,0.00030684,2]
[325289615,1714683064167,-500.0,0.00030684,2]
[325289616,1714683064177,-500.0,0.00030684,2]
[325289617,1714683064187,-776.62,0.00030684,2]
[325289618,1714683064197,-618.85,0.00030684,2]
[325289619,1714683064207,-500.0,0.00030684,2]
[325289620,1714683064217,-500.0,0.00030684,2]
[325289621,1714683064226,-500.0,0.00030684,2]
[325289622,1714683064236,-500.0,0.00030684,2]
[325289623,1714683064246,-500.0,0.00030684,2]
[325289624,1714683064255,-759.0,0.00030684,2]
[325289625,1714683064265,-500.0,0.00030684,2]
[325289626,1714683064275,-664.35,0.00030684,2]
[325289627,1714683064284,-850.72,0.00030684,2]
[325289628,1714683064294,-500.0,0.00030684,2]
[325289629,1714683064303,-500.0,0.00030684,2]
[325289630,1714683064313,-919.88,0.00030684,2]
[325289631,1714683064322,-500.0,0.00030684,2]
[325289632,1714683064332,-500.0,0.00030684,2]
[325289633,1714683064342,-1201.68,0.00030684,2]
[325289634,1714683064351,-617.56,0.00030684,2]
[325289635,1714683064361,-1293.48,0.00030684,2]
[325289636,1714683064371,-500.0,0.00030684,2]
[325289637,1714683064380,-500.0,0.00030684,2]
[325289638,1714683064390,-803.61,0.00030684,2]
[325289639,1714683064399,-500.0,0.00030684,2]
[325289640,1714683064408,-1205.02,0.00030684,2]
[325289641,1714683064417,-1305.3,0.00030684,2]
[325289642,1714683064427,-432.47162212,0.00030684,2]
[325289643,1714683064437,-1236.99,0.00030684,2]
[325289644,1714683064448,-500.0,0.00030684,2]
[325289645,1714683064460,-500.0,0.00030684,2]
[325289646,1714683064470,-1759.58,0.00030684,2]
[325289647,1714683064480,-757.34,0.00030684,2]
[325289648,1714683064490,-500.0,0.00030684,2]
[325289649,1714683064500,-1577.96,0.00030684,2]
[325289650,1714683064510,-500.0,0.00030684,2]
[325289651,1714683064520,-500.0,0.00030684,2]
[325289652,1714683064530,-500.0,0.00030684,2]
[325289653,1714683064540,-1496.03,0.00030684,2]
[325289654,1714683064550,-513.76,0.00030684,2]
[325289655,1714683064560,-759.28,0.00030684,2]
[325289656,1714683064569,-500.0,0.00030684,2]
[325289657,1714683064579,-1336.71,0.00030684,2]
[325289658,1714683064591,-939.25,0.00030684,2]
[325289659,1714683064600,-1011.99,0.00030684,2]
[325289660,1714683064609,-693.14,0.00030684,2]
[325289661,1714683064618,-2154.43,0.00030684,2]
[325289662,1714683064628,-1515.25,0.00030684,2]
[325289663,1714683064637,-591.58,0.00030684,2]
[325289664,1714683064646,-500.0,0.00030684,2]
[325289665,1714683064655,-608.52,0.00030684,2]
[325289666,1714683064665,-1751.28,0.00030684,2]
[325289667,1714683064674,-500.0,0.00030684,2]
[325289668,1714683064684,-500.0,0.00030684,2]
[325289669,1714683064694,-538.77,0.00030684,2]
[325289670,1714683064704,-1423.33,0.00030684,2]
[325289671,1714683064714,-739.84,0.00030684,2]
[325289672,1714683064723,-500.0,0.00030684,2]
[325289673,1714683064732,-617.25,0.00030684,2]
[325289674,1714683064742,-188.95427455,0.00030684,2]
[325289675,1714683064751,-1516.88,0.00030684,2]
[325289676,1714683064762,-1097.93,0.00030684,2]
[325289677,1714683064773,-1417.59,0.00030684,2]
[325289678,1714683064783,-894.75,0.00030684,2]
[325289679,1714683064792,-500.0,0.00030684,2]
[325289680,1714683064802,-992.45,0.00030684,2]
[325289681,1714683064811,-500.0,0.00030684,2]
[325289682,1714683064821,-208.93423565,0.00030684,2]
[325289683,1714683064830,-1423.1,0.00030684,2]
[325289684,1714683064844,-447.92461201,0.00030684,120]
[325289685,1714683064854,-500.0,0.00030684,2]
[325289686,1714683064864,-553.58,0.00030684,2]
[325289687,1714683064873,-500.0,0.00030684,2]
[325289688,1714683064882,-500.0,0.00030684,2]
[325289689,1714683064892,-1667.84,0.00030684,2]
[325289690,1714683064902,-751.3,0.00030684,2]
[325289691,1714683064911,-671.43,0.00030684,2]
[325289692,1714683064921,-500.0,0.00030684,2]
[325289693,1714683064930,-500.0,0.00030684,2]
[325289694,1714683064939,-500.0,0.00030684,2]
[325289695,1714683064949,-1932.81,0.00030684,2]
[325289696,1714683064959,-500.0,0.00030684,2]
[325289697,1714683064968,-720.23,0.00030684,2]
[325289698,1714683064977,-527.04050133,0.00030684,2]
[325289699,1714683064988,-500.0,0.00030684,2]
[325289700,1714683064997,-500.0,0.00030684,2]
[325289701,1714683065007,-2458.79,0.00030684,2]
[325289702,1714683065017,-1403.51,0.00030684,2]
[325289703,1714683065027,-939.24,0.00030684,2]
[325289704,1714683065036,-500.0,0.00030684,2]
[325289705,1714683065048,-500.0,0.00030684,2]
[325289706,1714683065058,-500.0,0.00030684,2]
[325289707,1714683065068,-500.0,0.00030684,2]
[325289708,1714683065078,-790.63,0.00030684,2]
[325289709,1714683065089,-2136.05,0.00030684,2]
[325289710,1714683065100,-659.54,0.00030684,2]
[325289711,1714683065110,-500.0,0.00030684,2]
[325289712,1714683065119,-572.87,0.00030684,2]
[325289713,1714683065129,-500.0,0.00030684,2]
[325289714,1714683065139,-523.04,0.00030684,2]
[325289715,1714683065149,-500.0,0.00030684,2]
[325289716,1714683065159,-500.0,0.00030684,2]
[325289717,1714683065169,-1065.61,0.00030684,2]
[325289718,1714683065178,-1968.78,0.00030684,2]
[325289719,1714683065188,-1105.16,0.00030684,2]
[325289720,1714683065198,-963.06,0.00030684,2]
[325289721,1714683065207,-500.0,0.00030684,2]
[325289722,1714683065216,-1145.93,0.00030684,2]
[325289723,1714683065226,-2488.99,0.00030684,2]
[325289724,1714683065235,-548.51,0.00030684,2]
[325289725,1714683065245,-826.51,0.00030684,2]
[325289726,1714683065254,-1217.75,0.00030684,2]
[325289727,1714683065263,-1244.53,0.00030684,2]
[325289728,1714683065273,-500.0,0.00030684,2]
[325289729,1714683065282,-500.0,0.00030684,2]
[325289730,1714683065291,-1000.0,0.00030684,2]
[325289731,1714683065301,-1988.05,0.00030684,2]
[325289732,1714683065311,-663.12,0.00030684,2]
[325289733,1714683065320,-1574.61,0.00030684,2]
[325289734,1714683065401,-892.09,0.00030684,2]
[325289735,1714683065410,-1574.87,0.00030684,2]
[325289736,1714683065420,-500.0,0.00030684,2]
[325289737,1714683065429,-1023.63,0.00030684,2]
[325289738,1714683065439,-682.83,0.00030684,2]
[325289739,1714683065449,-500.0,0.00030684,2]
[325289740,1714683065458,-1820.63,0.00030684,2]
[325289741,1714683065467,-915.04,0.00030684,2]
[325289742,1714683065477,-1076.68,0.00030684,2]
[325289743,1714683065486,-507.59,0.00030684,2]
[325289744,1714683065496,-522.52,0.00030684,2]
[325289745,1714683065505,-913.95,0.00030684,2]
[325289746,1714683065514,-1386.78,0.00030684,2]
[325289747,1714683065524,-500.0,0.00030684,2]
[325289748,1714683065533,-724.65,0.00030684,2]
[325289749,1714683065542,-1074.82,0.00030684,2]
[325289750,1714683065551,-1472.87,0.00030684,2]
[325289751,1714683065560,-500.0,0.00030684,2]
[325289752,1714683065569,-865.35,0.00030684,2]
[325289753,1714683065579,-500.0,0.00030684,2]
[325289754,1714683065588,-500.0,0.00030684,2]
[325289755,1714683065598,-500.0,0.00030684,2]
[325289756,1714683065607,-1087.85,0.00030684,2]
[325289757,1714683065617,-500.0,0.00030684,2]
[325289758,1714683065626,-1158.94,0.00030684,2]
[325289759,1714683065635,-500.0,0.00030684,2]
[325289760,1714683065644,-500.0,0.00030684,2]
[325289761,1714683065653,-500.0,0.00030684,2]
[325289762,1714683065662,-847.98,0.00030684,2]
[325289763,1714683065671,-500.0,0.00030684,2]
[325289764,1714683065680,-572.82,0.00030684,2]
[325289765,1714683065689,-1033.41,0.00030684,2]
[325289766,1714683065700,-980.23,0.00030684,2]
[325289767,1714683065710,-1238.67,0.00030684,2]
[325289768,1714683065719,-2153.08,0.00030684,2]
[325289769,1714683065728,-1054.6,0.00030684,2]
[325289770,1714683065737,-500.0,0.00030684,2]
[325289771,1714683065746,-584.4,0.00030684,2]
[325289772,1714683065756,-601.12,0.00030684,2]
[325289773,1714683065768,-500.0,0.00030684,2]
[325289774,1714683065779,-1449.02,0.00030684,2]
[325289775,1714683065788,-500.0,0.00030684,2]
[325289776,1714683065799,-500.0,0.00030684,2]
[325289777,1714683065808,-500.0,0.00030684,2]
[325289778,1714683065818,-500.0,0.00030684,2]
[325289779,1714683065827,-2076.18,0.00030684,2]
[325289780,1714683065837,-896.36,0.00030684,2]
[325289781,1714683065850,-1562.95,0.00030684,2]
[325289782,1714683065860,-500.0,0.00030684,2]
[325289783,1714683065869,-500.0,0.00030684,2]
[325289784,1714683065879,-500.0,0.00030684,2]
[325289785,1714683065888,-500.0,0.00030684,2]
[325289786,1714683065898,-570.91630583,0.00030684,2]
[325289787,1714683065907,-615.89,0.00030684,2]
[325289788,1714683065916,-500.0,0.00030684,2]
[325289789,1714683065927,-842.85,0.00030684,2]
[325289790,1714683065936,-500.0,0.00030684,2]
[325289791,1714683065946,-718.55,0.00030684,2]
[325289792,1714683065956,-1843.7,0.00030684,2]
[325289793,1714683065966,-988.8,0.00030684,2]
[325289794,1714683065975,-1043.58,0.00030684,2]
[325289795,1714683065985,-1233.01,0.00030684,2]
[325289796,1714683065995,-779.0,0.00030684,2]
[325289797,1714683066004,-2426.46,0.00030684,2]
[325289798,1714683066015,-1227.36,0.00030684,2]
[325289799,1714683066024,-1366.27,0.00030684,2]
[325289800,1714683066034,-500.0,0.00030684,2]
[325289801,1714683066043,-500.0,0.00030684,2]
[325289802,1714683066053,-1062.59,0.00030684,2]
[325289803,1714683066062,-500.0,0.00030684,2]
[325289804,1714683066071,-1119.74,0.00030684,2]
[325289805,1714683066080,-1126.52,0.00030684,2]
[325289806,1714683066091,-500.0,0.00030684,2]
[325289807,1714683066100,-1321.65,0.00030684,2]
[325289808,1714683066108,-293.56511366,0.00030684,2]
[325289809,1714683066118,-500.0,0.00030684,2]
[325289810,1714683066127,-968.08,0.00030684,2]
[325289811,1714683066136,-500.0,0.00030684,2]
[325289812,1714683066146,-500.0,0.00030684,2]
[325289813,1714683066156,-1421.65,0.00030684,2]
[325289814,1714683066165,-500.0,0.00030684,2]
[325289815,1714683066174,-1669.57,0.00030684,2]
[325289816,1714683066183,-500.0,0.00030684,2]
[325289817,1714683066193,-500.0,0.00030684,2]
[325289818,1714683066202,-611.12,0.00030684,2]
[325289819,1714683066211,-500.0,0.00030684,2]
[325289820,1714683066220,-1045.51,0.00030684,2]
[325289821,1714683066230,-500.0,0.00030684,2]
[325289822,1714683066239,-887.23,0.00030684,2]
[325289823,1714683066248,-500.0,0.00030684,2]
[325289824,1714683066258,-500.0,0.00030684,2]
[325289825,1714683066268,-757.57,0.00030684,2]
[325289826,1714683066278,-1235.25,0.00030684,2]
[325289827,1714683066287,-500.0,0.00030684,2]
[325289828,1714683066297,-500.0,0.00030684,2]
[325289829,1714683066307,-500.0,0.00030684,2]
[325289830,1714683066317,-1648.49,0.00030684,2]
[325289831,1714683066326,-1549.2,0.00030684,2]
[325289832,1714683066336,-814.98,0.00030684,2]
[325289833,1714683066345,-1109.78,0.00030684,2]
[325289834,1714683066355,-1009.56,0.00030684,2]
[325289835,1714683066364,-500.0,0.00030684,2]
[325289836,1714683066374,-1083.32,0.00030684,2]
[325289837,1714683066383,-1978.86,0.00030684,2]
[325289838,1714683066392,-500.0,0.00030684,2]
[325289839,1714683066402,-1371.5,0.00030684,2]
[325289840,1714683066412,-500.0,0.00030684,2]
[325289841,1714683066421,-2170.38,0.00030684,2]
[325289842,1714683066430,-500.0,0.00030684,2]
[325289843,1714683066439,-500.0,0.00030684,2]
[325289844,1714683066449,-500.0,0.00030684,2]
[325289845,1714683066459,-516.60526007,0.00030684,2]
[325289846,1714683066468,-179.3130643,0.00030684,2]
[325289847,1714683066478,-695.46,0.00030684,2]
[325289848,1714683066487,-928.08,0.00030684,2]
[325289849,1714683066496,-635.18,0.00030684,2]
[325289850,1714683066506,-500.0,0.00030684,2]
[325289851,1714683066516,-727.5,0.00030684,2]
[325289852,1714683066526,-576.6,0.00030684,2]
[325289853,1714683066536,-1089.91,0.00030684,2]
[325289854,1714683066546,-500.0,0.00030684,2]
[325289855,1714683066556,-1145.73,0.00030684,2]
[325289856,1714683066566,-646.04,0.00030684,2]
[325289857,1714683066575,-500.0,0.00030684,2]
[325289858,1714683066587,-2355.52,0.00030684,2]
[325289859,1714683066596,-506.54,0.00030684,2]
[325289860,1714683066606,-1685.91,0.00030684,2]
[325289861,1714683066616,-523.68,0.00030684,2]
[325289862,1714683066627,-500.0,0.00030684,2]
[325289863,1714683066636,-944.69,0.00030684,2]
[325289864,1714683066647,-575.67,0.00030684,2]
[325289865,1714683066656,-500.0,0.00030684,2]
[325289866,1714683066666,-2408.71,0.00030684,2]
[325289867,1714683066676,-796.25,0.00030684,2]
[325289868,1714683066686,-1773.56,0.00030684,2]
[325289869,1714683066696,-860.54,0.00030684,2]
[325289870,1714683066709,-878.37,0.00030684,2]
[325289871,1714683066719,-500.0,0.00030684,2]
[325289872,1714683066729,-500.0,0.00030684,2]
[325289873,1714683066740,-500.0,0.00030684,2]
[325289874,1714683066750,-770.23,0.00030684,2]
[325289875,1714683066767,-500.0,0.00030684,2]
[325289876,1714683066783,-828.87,0.00030684,2]
[325289877,1714683066793,-1610.86,0.00030684,2]
[325289878,1714683066803,-565.44,0.00030684,2]
[325289879,1714683066814,-500.0,0.00030684,2]
[325289880,1714683066824,-500.0,0.00030684,2]
[325289881,1714683066836,-585.07,0.00030684,2]
[325289882,1714683066846,-500.0,0.00030684,2]
[325289883,1714683066856,-1250.61,0.00030684,2]
[325289884,1714683066866,-762.12,0.00030684,2]
[325289885,1714683066876,-687.63,0.00030684,2]
[325289886,1714683066889,-625.06,0.00030684,2]
[325289887,1714683066898,-960.08,0.00030684,2]
[325289888,1714683066908,-683.05,0.00030684,2]
[325289889,1714683066918,-500.0,0.00030684,2]
[325289890,1714683066928,-791.88,0.00030684,2]
[325289891,1714683066942,-952.61,0.00030684,2]
[325289892,1714683066953,-500.0,0.00030684,2]
[325289893,1714683066979,-500.0,0.00030684,2]
[325289894,1714683066997,-580.45,0.00030684,2]
[325289895,1714683067012,-1307.0,0.00030684,2]
[325289896,1714683067030,-605.99,0.00030684,2]
[325289897,1714683067040,-500.0,0.00030684,2]
[325289898,1714683067049,-930.78,0.00030684,2]
[325289899,1714683067058,-500.0,0.00030684,2]
[325289900,1714683067090,-524.94,0.00030684,2]
[325289901,1714683067114,-541.3,0.00030684,2]
[325289902,1714683067124,-500.0,0.00030684,2]
[325289903,1714683067135,-740.85,0.00030684,2]
[325289904,1714683067144,-742.65,0.00030684,2]
[325289905,1714683067153,-500.0,0.00030684,2]
[325289906,1714683067167,-972.98,0.00030684,2]
[325289907,1714683067181,-1262.99,0.00030684,2]
[325289908,1714683067207,-514.87,0.00030684,2]
[325289909,1714683067244,-1002.78,0.00030684,2]
[325289910,1714683067256,-500.0,0.00030684,2]
[325289911,1714683067269,-701.34,0.00030684,2]
[325289912,1714683067279,-500.0,0.00030684,2]
[325289913,1714683067296,-604.94,0.00030684,2]
[325289914,1714683067306,-500.0,0.00030684,2]
[325289915,1714683067343,-500.0,0.00030684,2]
[325289916,1714683067354,-426.84806683,0.00030684,2]
[325289917,1714683067369,-718.95,0.00030684,2]
[325289918,1714683067381,-500.0,0.00030684,2]
[325289919,1714683067409,-500.0,0.00030684,2]
[325289920,1714683067421,-500.0,0.00030684,2]
[325289921,1714683067430,-851.2,0.00030684,2]
[325289922,1714683067439,-565.11,0.00030684,2]
[325289923,1714683067449,-500.0,0.00030684,2]
[325289924,1714683067458,-6873.07,0.00030684,2]
[325289925,1714683067467,-991.31,0.00030684,2]
[325289926,1714683067476,-500.0,0.00030684,2]
[325289927,1714683067486,-1034.58,0.00030684,2]
[325289928,1714683067495,-500.0,0.00030684,2]
[325289929,1714683067505,-546.39,0.00030684,2]
[325289930,1714683067514,-500.0,0.00030684,2]
[325289931,1714683067523,-500.0,0.00030684,2]
[325289932,1714683067533,-1865.11,0.00030684,2]
[325289933,1714683067542,-3023.14,0.00030684,2]
[325289934,1714683067552,-500.0,0.00030684,2]
[325289935,1714683067561,-500.0,0.00030684,2]
[325289936,1714683067570,-3465.64,0.00030684,2]
[325289937,1714683067579,-500.0,0.00030684,2]
[325289938,1714683067590,-738.49,0.00030684,2]
[325289939,1714683067599,-500.0,0.00030684,2]
[325289940,1714683067609,-1106.89,0.00030684,2]
[325289941,1714683067618,-829.32,0.00030684,2]
[325289942,1714683067628,-761.66,0.00030684,2]
[325289943,1714683067637,-779.97,0.00030684,2]
[325289944,1714683067646,-902.65,0.00030684,2]
[325289945,1714683067655,-642.7,0.00030684,2]
[325289946,1714683067665,-501.27,0.00030684,2]
[325289947,1714683067674,-1566.82,0.00030684,2]
[325289948,1714683067684,-9353.96,0.00030684,2]
[325289949,1714683067693,-500.0,0.00030684,2]
[325289950,1714683067705,-774.51,0.00030684,2]
[325289951,1714683067715,-590.33,0.00030684,2]
[325289952,1714683067724,-500.0,0.00030684,2]
[325289953,1714683067733,-1525.66,0.00030684,2]
[325289954,1714683067742,-500.0,0.00030684,2]
[325289955,1714683067752,-500.0,0.00030684,2]
[325289956,1714683067766,-1269.77,0.00030684,2]
[325289957,1714683067776,-500.0,0.00030684,2]
[325289958,1714683067786,-500.0,0.00030684,2]
[325289959,1714683067795,-500.0,0.00030684,2]
[325289960,1714683067806,-2731.24,0.00030684,2]
[325289961,1714683067815,-500.0,0.00030684,2]